Cogmind - Beta 15 @@@ ROGUE MODE // 2025.08.28 @ 21:16:43 Player: Lunace Result: Self-destructed Performance ------------- Evolutions (5) 2500 Regions Visited (4) 800 Robots Destroyed (7) 35 Value Destroyed (182) 182 Prototype IDs (16) 320 Alien Tech Used (0) 0 Bonus (800) 800 TOTAL SCORE: 4637 Bonus ------- Registered with UFD 300 Met Optimus in HQ 500 Cogmind --------- Core Integrity 942/1000 Matter 199/300 Energy 34/100 System Corruption 0% Temperature Cool (0) Movement Hovering (110) Ox1 Location -5/Factory Parts ------- > --- POWER (2) -------- (None) > --- PROPULSION (5) --- Gyrokinetic Inverter > --- UTILITY (8) ------ Small Storage Unit Enhanced Optical Array Experimental Sensor Array Advanced Melee Analysis Suite Improved Component Analysis Suite > --- WEAPON (2) ------- Improved Remote Datajack Great Maul > --- INVENTORY (8) ---- Force Booster Transmission Jammer Proton Missile Launcher Vortex Trap Peak State ------------ > --- POWER ------------ Ion Engine > --- PROPULSION ------- Gravmag System Gyrokinetic Inverter Linear Gravjet > --- UTILITY ---------- Small Storage Unit Enhanced Optical Array Experimental Sensor Array Advanced Melee Analysis Suite Improved Component Analysis Suite > --- WEAPON ----------- Improved Remote Datajack Great Maul > --- INVENTORY -------- Force Booster Transmission Jammer Proton Missile Launcher Vortex Trap Vortex Trap [Rating: 53] Favorites ----------- Power Ion Engine Engine Ion Engine Propulsion Light Treads Treads Light Treads Hover Unit Gravmag System Utility Small Storage Unit Device Seismic Detector Storage Small Storage Unit Processor Advanced Melee Analysis Suite Protection Improved Medium Armor Plating Weapon Assault Rifle Ballistic Gun Assault Rifle Special Weapon Improved Remote Datajack Impact Weapon Great Maul Build | -11 -10 -10 -7 -5 ------- Run | Yrd Mat Sub Scr Fac Slots Evolved 10 | . . . . 10 Power 1 | . . . . 1 Propulsion 3 | . . . . 3 Utility 6 | . . . . 6 Weapon . | . . . . . Parts Attached 20 | 7 . . 5 8 Power 1 | 1 . . . . Engine 1 | 1 . . . . Core . | . . . . . Reactor . | . . . . . Propulsion 6 | 2 . . . 4 Treads 2 | 2 . . . . Leg . | . . . . . Wheel . | . . . . . Hover 4 | . . . . 4 Flight . | . . . . . Utility 7 | 2 . . 2 3 Device 3 | 1 . . 1 1 Storage 1 | 1 . . . . Processor 2 | . . . . 2 Hackware . | . . . . . Protection 1 | . . . 1 . Artifact . | . . . . . Weapon 6 | 2 . . 3 1 Energy Gun . | . . . . . Energy Cannon . | . . . . . Ballistic Gun 4 | 2 . . 2 . Ballistic Cannon . | . . . . . Launcher . | . . . . . Special Weapon 1 | . . . . 1 Impact Weapon 1 | . . . 1 . Slashing Weapon . | . . . . . Piercing Weapon . | . . . . . Special Melee Weapon . | . . . . . Unidentified Prototypes . | . . . . . Parts Lost 4 | . . . . 4 Power 1 | . . . . 1 Propulsion 3 | . . . . 3 Utility . | . . . . . Weapon . | . . . . . Highest Loss Streak 4 | . . . . 4 To Critical Strikes . | . . . . . Average Backups 5 | . 3 4 6 3 Power . | . . . . . Propulsion . | . . . 1 . Utility 2 | . 1 1 2 2 Weapon 2 | . 2 3 2 1 Tool/Special . | . . . . . Unused Backups 9 | . . . 6 3 Power . | . . . . . Propulsion . | . . . . . Utility 4 | . . . 2 2 Weapon 4 | . . . 3 1 Tool/Special 1 | . . . 1 . Average Slot Usage (%) 89 | . 100 100 88 50 Engine 13 | . 14 14 14 4 Treads 26 | . 28 28 28 . Device 8 | . 14 14 6 10 Storage 13 | . 14 14 14 5 Protection 1 | . . . 2 . Ballistic Gun 18 | . 28 28 15 . Impact Weapon 4 | . . . 6 5 Peak Build Rating 53 | 7 7 7 19 53 Average Rating 12 | 5 7 7 12 41 On Entrance 7 | . 7 7 7 18 Naked Turns . | . . . . . Heaviest Build 25 | 15 15 15 25 16 Greatest Support 40 | 40 40 40 40 38 Greatest Overweight (x) 1 | . . . . 1 Average Overweight (x) . | . . . . . Largest Inventory Capacity 8 | 8 8 8 8 8 Average Capacity 7 | 7 8 8 8 8 Most Carried 8 | 3 4 4 8 8 Average Carried 5 | . 3 4 6 4 Final Capacity 8 | 8 8 8 8 8 Final Carried 8 | 3 4 4 8 4 Class Distribution -------------------- 100% | Mutant Dominant Class ---------------- Mutant | -10/Materials Mutant | -10/Subcaves Mutant | -7/Scraptown Mutant | -5/Factory Resources | -11 -10 -10 -7 -5 ----------- Run | Yrd Mat Sub Scr Fac Matter Collected 439 | 263 96 . 59 21 Remotely . | . . . . . Salvage Created 199 | 36 142 . . 21 Parts 12 | 4 8 . . . Haulers Intercepted . | . . . . . Recyclers Shooed . | . . . . . Parts Field Recycled . | . . . . . Retrieved Matter . | . . . . . Parts Self-Destructed 14 | . . 14 . . Prevented . | . . . . . Kills | -11 -10 -10 -7 -5 ------- Run | Yrd Mat Sub Scr Fac Combat Hostiles Destroyed 3 | . 3 . . . Guns 3 | . 3 . . . Classes Destroyed 4 | 1 2 . . 1 Tunneler 2 | 2 . . . . Operator 1 | . . . . 1 Watcher 1 | . 1 . . . Grunt 3 | . 3 . . . Best Kill Streak 2 | 2 2 . . 1 Combat Bots Only 2 | . 2 . . . Max Kills in Single Turn 1 | 1 1 . . 1 Gunslinging . | . . . . . Exploded . | . . . . . Melee . | . . . . . Uniques/NPCs Destroyed . | . . . . . Combat | -11 -10 -10 -7 -5 -------- Run | Yrd Mat Sub Scr Fac Hostile Shots Fired 42 | . 17 . 5 20 Missed 10 | . 1 . . 9 Hits 32 | . 16 . 5 11 Projectile 32 | . 16 . 5 11 AOE 1 | . . . . 1 Critical Strikes 3 | . 1 . . 2 Damage Taken 619 | . 235 . 111 273 Core 103 | . 27 . 18 58 Absorbed by Shields . | . . . . . Core Remaining (%) 91 | 100 . . 82 . Volleys Fired 26 | 4 14 . . 8 Largest 2 | 2 2 . . 1 Hottest 40 | 40 40 . . 7 Shots Fired 44 | 8 28 . . 8 Gun 36 | 8 28 . . . Cannon . | . . . . . Launcher . | . . . . . Special 8 | . . . . 8 Kinetic 36 | 8 28 . . . Thermal . | . . . . . Explosive . | . . . . . Electromagnetic . | . . . . . Robot Hit Streak 11 | 2 11 . . 10 Robot Miss Streak 3 | 2 3 . . . Penetration Max . | . . . . . Secondary Targets 1 | . 1 . . . Max Gunslinging Chain 1 | . 1 . . . Shots Hit Robots 34 | 4 21 . . 9 Core Hits 10 | 2 8 . . . Critical Kills . | . . . . . Critical Parts Destroyed . | . . . . . Critical Strikes . | . . . . . Melee Attacks 2 | . . . 1 1 Impact 2 | . . . 1 1 Slashing . | . . . . . Piercing . | . . . . . Sneak Attacks . | . . . . . Combat Hostiles . | . . . . . Follow-up Attacks . | . . . . . Damage Inflicted 369 | 49 263 . 3 54 Guns 312 | 49 263 . . . Cannons . | . . . . . Explosions . | . . . . . Melee 54 | . . . . 54 Ramming 3 | . . . 3 . Kinetic 312 | 49 263 . . . Thermal . | . . . . . Explosive . | . . . . . Electromagnetic . | . . . . . Impact 54 | . . . . 54 Slashing . | . . . . . Piercing . | . . . . . Highest Corruption . | . . . . . Average Corruption . | . . . . . Corruption Purged . | . . . . . Corruption Blocked . | . . . . . Overload Shots . | . . . . . Overflow Damage 19 | . . . . 19 Projectiles . | . . . . . Explosions . | . . . . . Melee 19 | . . . . 19 Knockbacks 1 | . . . . 1 Impact 1 | . . . . 1 Kinetic . | . . . . . Secondary . | . . . . . Self-Inflicted Damage . | . . . . . Shots . | . . . . . Rammed 1 | . . . 1 . Targets Rammed 1 | . . . 1 . Kicked . | . . . . . Crushed . | . . . . . Highest Temperature 26 | . 26 . 17 . Average Temperature 12 | . 12 . 10 . Received Heat Transfer 222 | . 150 . 60 12 Siege Activations . | . . . . . Martial Activations . | . . . . . Shielding Activations . | . . . . . Robots Disrupted . | . . . . . Combat Hostiles . | . . . . . Robots Corrupted 1 | . . . . 1 Combat Hostiles . | . . . . . Parts Fried 4 | . . . . 4 Impact Corruptions 2 | . . . . 2 Robots Melted . | . . . . . Combat Hostiles . | . . . . . Parts Melted . | . . . . . Heat Transferred . | . . . . . Parts Sabotaged . | . . . . . Parts Stolen . | . . . . . Parts Stripped . | . . . . . Power Chain Reactions . | . . . . . Alert | -11 -10 -10 -7 -5 ------- Run | Yrd Mat Sub Scr Fac Maximum Alert Level . | . . . . . Low Security (%) 100 | 100 100 . . 100 Level 1 . | . . . . . Level 2 . | . . . . . Level 3 . | . . . . . Level 4 . | . . . . . Level 5 . | . . . . . High Security . | . . . . . Max Security . | . . . . . Peak Influence 90 | 10 90 . . 21 Initial . | . . . . . Average 8 | . 15 . . 3 Influence Increases 158 | 10 117 . . 31 Destroy 0b10 Robot/C 60 | . 60 . . . Destroy 0b10 Robot/NC 20 | 10 5 . . 5 Destroy Leader 22 | . 22 . . . Trap Triggered on 0b10 10 | . . . . 10 Successful Hack 16 | . . . . 16 Lose Combat Pursuer 30 | . 30 . . . Influence Decreases 158 | 10 37 80 . 31 Entered New Map 39 | . . 39 . . Time Decay 108 | 10 37 41 . 20 Lost Part 11 | . . . . 11 Squads Dispatched 2 | . . . . 2 Investigation 1 | . . . . 1 Extermination . | . . . . . Reinforcement 1 | . . . . 1 Assault . | . . . . . Garrison . | . . . . . Intercept . | . . . . . Searches Triggered . | . . . . . Construction Impeded . | . . . . . Haulers Reinforced . | . . . . . Active Scanning Responses . | . . . . . Cargo Convoy Interrupts . | . . . . . Stealth | -11 -10 -10 -7 -5 --------- Run | Yrd Mat Sub Scr Fac Distress Signals 1 | . 1 . . . Communications Jammed . | . . . . . Distress Signals . | . . . . . Times Spotted 16 | . 7 . 4 5 Peak Tracking Total 5 | . 5 . 4 3 Tactical Retreats 2 | . 2 . . . Traps | -11 -10 -10 -7 -5 ------- Run | Yrd Mat Sub Scr Fac Traps Triggered . | . . . . . Indirectly . | . . . . . Trap Hack Attempts . | . . . . . Triggered . | . . . . . Disarmed . | . . . . . Reprogrammed . | . . . . . Reused 1 | . . . . 1 Traps Extracted . | . . . . . Installed 1 | . . . . 1 Triggered 1 | . . . . 1 Most Traps Carried 2 | . . . 2 2 Machines | -11 -10 -10 -7 -5 ---------- Run | Yrd Mat Sub Scr Fac Machines Disabled . | . . . . . Max in Single Turn . | . . . . . Machines Repaired . | . . . . . Machines Dismantled . | . . . . . Machines Sabotaged . | . . . . . Overloaded Fab Kills . | . . . . . Hacking | -11 -10 -10 -7 -5 --------- Run | Yrd Mat Sub Scr Fac Machines Accessed 4 | . . . 3 1 Terminals 1 | . . . . 1 Fabricators . | . . . . . Repair Stations . | . . . . . Recycling Units . | . . . . . Scanalyzers . | . . . . . Garrison Access . | . . . . . Total Hacks 13 | . . . 10 3 Successful 11 | . . . 10 1 Failed 2 | . . . . 2 Catastrophic . | . . . . . Database Lockouts . | . . . . . Manual 1 | . . . . 1 Terminals 3 | . . . . 3 Fabricators . | . . . . . Repair Stations . | . . . . . Recycling Units . | . . . . . Scanalyzers . | . . . . . Garrison Access . | . . . . . Terminal Hacks 10 | . . . 10 . Record 9 | . . . 9 . Proto ID Catalog 1 | . . . 1 . Fabricator Hacks . | . . . . . Repair Station Hacks . | . . . . . Recycling Unit Hacks . | . . . . . Scanalyzer . | . . . . . Garrison Access Hacks . | . . . . . Unauthorized Hacks 1 | . . . . 1 Terminals 1 | . . . . 1 Assimilate 1 | . . . . 1 Fabricators . | . . . . . Repair Stations . | . . . . . Recycling Units . | . . . . . Scanalyzers . | . . . . . Garrison Access . | . . . . . Data Cores Recovered . | . . . . . Used . | . . . . . Hacking Detections 1 | . . . . 1 Full Trace Events 1 | . . . . 1 Feedback Events . | . . . . . Feedback Blocked . | . . . . . Robot Schematics Acquired . | . . . . . Robots Built . | . . . . . Authchips . | . . . . . Time . | . . . . . Total Robot Build Rating . | . . . . . Part Schematics Acquired . | . . . . . Parts Built . | . . . . . Authchips . | . . . . . Time . | . . . . . Total Part Build Rating . | . . . . . Parts Repaired . | . . . . . Time . | . . . . . Parts Recycled . | . . . . . Recycled Matter . | . . . . . Retrieved Matter . | . . . . . Retrieved Components . | . . . . . Parts Scanalyzed . | . . . . . Part Schematics Acquired . | . . . . . Parts Damaged . | . . . . . Bothacking | -11 -10 -10 -7 -5 ------------ Run | Yrd Mat Sub Scr Fac Used RIF Installer . | . . . . . Robots Hacked 1 | . . . . 1 Non-combat . | . . . . . Combat . | . . . . . Robot Hacks Applied . | . . . . . Manual 1 | . . . . 1 Relay Couplers Released . | . . . . . Fabnet Peak Effective % . | . . . . . Robots Rewired . | . . . . . Allies Hacked . | . . . . . Hacks Repelled . | . . . . . Allies | -11 -10 -10 -7 -5 -------- Run | Yrd Mat Sub Scr Fac Total Allies . | . . . . . Largest Group . | . . . . . Highest-Rated Group . | . . . . . Highest-Rated Ally . | . . . . . Total Orders . | . . . . . Ally Attacks . | . . . . . Total Damage . | . . . . . Kills . | . . . . . Allies Corrupted . | . . . . . Allies Melted . | . . . . . Intel | -11 -10 -10 -7 -5 ------- Run | Yrd Mat Sub Scr Fac Active Infowar (turns) 1424 | 13 203 359 741 108 Optics 44 | . . . . 44 Sensors 387 | . . . 323 64 Seismic 993 | 13 203 359 418 . Robot Analysis Total . | . . . . . Derelict Logs Recovered . | . . . . . Drone Launches . | . . . . . Drone Recoveries . | . . . . . Exploration | -11 -10 -10 -7 -5 ------------- Run | Yrd Mat Sub Scr Fac Turns Passed 2305 | 92 203 359 1538 113 Spaces Moved 1437 | 46 61 225 944 161 Core 5 | 5 . . . . Treads 1271 | 41 61 225 944 . Legs . | . . . . . Wheels . | . . . . . Hover 161 | . . . . 161 Flight . | . . . . . Fastest Speed 45 | 50 160 160 160 45 Average Speed 147 | 148 160 160 160 51 Slowest Speed 160 | 160 160 160 160 110 Overloaded Moves . | . . . . . Propulsion Burnouts . | . . . . . Robots Hopped . | . . . . . Potential Cave-ins . | . . . . . Cave-ins Triggered . | . . . . . Exploration Rate (%) 27 | 5 23 21 83 5 Regions Visited 4 Branch Regions 2 Pre-discovered Areas . | . . . . . Known Exits Taken . | . . . . . Unknown Exits Taken 4 | 1 1 1 1 . Scrap Searched 2 | . . . 2 . Spaces Dug . | . . . . . Terrain Destroyed . | . . . . . Melee . | . . . . . Projectile . | . . . . . AOE . | . . . . . Terrain Rammed . | . . . . . Walls Destroyed . | . . . . . Machines Disabled . | . . . . . Actions | -11 -10 -10 -7 -5 --------- Run | Yrd Mat Sub Scr Fac Total 1581 | 59 139 224 974 185 Wait 67 | . 64 . . 3 Move 1434 | 45 60 224 944 161 Hop . | . . . . . Pick Up 16 | 3 1 . 12 . Fast Attach 14 | 7 . . 2 5 Attach 5 | . . . 2 3 Detach . | . . . . . Swap 1 | . . . 1 . Drop 15 | . . . 12 3 Fire 26 | 4 14 . . 8 Melee 2 | . . . 1 1 Ram . | . . . . . Kick . | . . . . . Crush . | . . . . . Escape Stasis . | . . . . . Rewire . | . . . . . Trap 1 | . . . . 1 Miscellaneous . | . . . . . Route ------- -11/Scrapyard -10/Materials -10/Subcaves (discovered 2 exits: [*Mat] / *Scr) -7/Scraptown (discovered 2 exits: *Fac x2) -5/Factory History --------- Turn | Location | Event 10 | -11/Scrapyard | Discovered new exit (range 14) 93 | -11/Scrapyard | Entered Materials 292 | -10/Materials | Discovered new exit (range 5) 296 | -10/Materials | Entered Subcaves 297 | -10/Subcaves | Approached by a straggling Scientist 310 | -10/Subcaves | Build established: Mutant 450 | -10/Subcaves | Discovered new exit (range 10) 553 | -10/Subcaves | Scientist uncovered a shortcut to Scraptown 655 | -10/Subcaves | Entered Scraptown 755 | -7/Scraptown | Visited UFD Registry 755 | -7/Scraptown | Registered with UFD as "Dualparser" 807 | -7/Scraptown | Visited Shadow of the Wyrm 855 | -7/Scraptown | Discovered new exit (range 11) 1379 | -7/Scraptown | Visited Fellowship of the Rings 1416 | -7/Scraptown | Visited Red Mages 1489 | -7/Scraptown | Visited LU-1G1's Boring Crew 1515 | -7/Scraptown | Visited Infowarlord's Domain 1525 | -7/Scraptown | Found Exp. Sensor Array 1552 | -7/Scraptown | Visited Curators Association 1800 | -7/Scraptown | Visited Scrapoid Pod Storage 1824 | -7/Scraptown | Visited Scrap Suit Storage 1841 | -7/Scraptown | Visited Science Guys 1898 | -7/Scraptown | Visited Abandonware Association 1914 | -7/Scraptown | Learned abandonware demo "REVENGE.EXE" 1952 | -7/Scraptown | Visited Junk Cannon Lab 1997 | -7/Scraptown | Visited Chapter 10 2099 | -7/Scraptown | Met Optimus 2099 | -7/Scraptown | Accepted into 0bPrime 2182 | -7/Scraptown | Civil war broke out across Scraptown 2186 | -7/Scraptown | Discovered new exit (range 3) 2193 | -7/Scraptown | Entered Factory 2193 | -5/Factory | Evolved 10 slots: Power x1, Propulsion x3, Utility x6 2306 | -5/Factory | Self-destructed Last Messages --------------- 02273_ Acquired Imp. Remote Datajack. 02277_ P-70 Sage repels hacking attempt. 02280_ Jacked P-70 Sage... 02280_ Command string: \\P6NG 02280_ REVENGE.EXE: Zap goes the P-70 Sage! 02281_ Ion Engine destroyed. 02281_ P-70 Sage repels hacking attempt. 02283_ P-70 Sage misfires. 02283_ P-70 Sage repels hacking attempt. 02284_ P-70 Sage resets P-70 Sage, system corruption cleaned. 02285_ P-70 Sage repels hacking attempt. 02288_ P-70 Sage resets P-70 Sage, system corruption cleaned. 02294_ Dropped Vortex Trap. 02295_ Installed Vortex Trap. 02300_ Nuclear Reactor explodes. 02305_ Penetrated by Slug. 02305_ Gravmag System destroyed. 02305_ Linear Gravjet destroyed. Map ----- +----------------------------------------------------+ | ######## # ###" "### #???????? | | ?????# # "" ## ????? | | ?????# # """ ## ????? | | ?????# # S" + ????? | | ?????# # """ ## ????? | | ?????# # """ ## ?????? | | ?????### # ## """"""### ?????? | | ???????# ###+##### "# ###?? ??????? | | ???????# ##?##????? ????????? | | ???????# #?????????? ???????? | | ???????# #??????????? ???????? | | ???????# #???????????? ????????? | | ???????# ?????????????????????? | | ????########+## ######???????????????? | | ????# # #???????????????? | | ????# # # """ #???????????????? | | ????#%! # / """ #???????????????? | | ????#! # ^ "" """ #???????????????? | | ????########### #???????????????? | | ???????????? #######+####???????????????? | | ???????????######"" ??????# #??????????????????? | | ???????????# ?????# #??????????????????? | | ???????????# ?????# #??????????????????? | | ???????????# ????# #??????????????????? | | ???????????# ===##### #??????????????????? | | ???????????# ===/@ #??????????????????? | | ???????????# ===#######??????????????????? | | ???????????# = ?????????????????????????? | | ???????????# ??????????????????????????? | | ???????????# """"" ??????????????????????????? | | ???????????# """"" ???????????????????????????? | | ???????????# """ ???????????????????????????? | | ???????????# ????????????????????????????? | | ???????????#?###### #????????????????????????????? | | ??????????????????##?????????????????????????????? | | ?????????????????????????????????????????????????? | | ?????????????????????????????????????????????????? | | ?????????????????????????????????????????????????? | | ?????????????????????????????????????????????????? | | ?????????????????????????????????????????????????? | | ?????????????????????????????????????????????????? | | ?????????????????????????????????????????????????? | | ?????????????????????????????????????????????????? | | ?????????????????????????????????????????????????? | | ?????????????????????????????????????????????????? | | ?????????????????????????????????????????????????? | | ?????????????????????????????????????????????????? | | ?????????????????????????????????????????????????? | | ?????????????????????????????????????????????????? | | ?????????????????????????????????????????????????? | +----------------------------------------------------+ Best States ------------- Heat Dissipation 40 Energy Generation 10 Energy Capacity 250 Matter Stores 300 Matter Capacity 300 Sight Range 22 Robot Scan Range 20 Terrain Scan Density 10 Armor Coverage 225 Evasion (%) 56 Melee Accuracy 8 Recoil Reduction 2 Item Schematics ----------------- None Robot Schematics ------------------ None Fabricated ------------ Nothing Repaired ---------- Nothing Alien Tech Used ----------------- None Achievements -------------- None Challenges ------------ None Game ------ Seed IonicTachyonDoomcannon Manual? 0 Play Time 00:16:07 Cumulative 414.9 hours Start 2025.08.28 @ 21:03:13 End 2025.08.28 @ 21:16:43 Sessions 1 Manual Loads 0 Difficulty Rogue Special Mode None Game No. 416 Rogue 411 Adventurer 5 Explorer 0 Win Type - Total 9 Types 6/0/0/3/0/0/0/0/0/0 Lore% 82 Gallery% 79 Achievement% 71 Wizard Run 0 Options --------- Layout 1 ASCII 0 Keyboard 0 Movement Arrows Keybinds 0 Fullscreen 1 Font 24/Terminus Map View 50x35 Zoom Use 0% Tactical HUD 1 Map Filters NONE Filters NONE Steam 1 RUN: f28296f2-1d00-4553-a4fd-3c62c2f37050